bitfinex-derivatives/quotes_BTCF0:USTF0_20250720
["timestamp","ask_amount","ask_price","bid_price","bid_amount"]
[1753041415249,1.3234519,118330.0,118320.0,1.21661416]
[1753041418047,1.3234519,118330.0,118320.0,0.83960598]
[1753041418246,1.3234519,118330.0,118320.0,1.21661416]
[1753041419253,1.3234519,118330.0,118320.0,0.83960598]
[1753041419546,1.3234519,118330.0,118320.0,1.21661416]
[1753041419752,1.3234519,118330.0,118320.0,1.02763007]
[1753041420051,1.51195599,118330.0,118320.0,0.71613416]
[1753041420243,1.51195599,118330.0,118320.0,0.88508316]
[1753041420443,1.51195599,118330.0,118320.0,1.07358725]
[1753041420744,1.51195599,118330.0,118320.0,0.88508316]
[1753041420943,1.87275599,118330.0,118320.0,0.88508316]
[1753041423650,1.6842519,118330.0,118320.0,0.88508316]
[1753041423851,1.87275599,118330.0,118320.0,0.38508316]
[1753041424555,1.87275599,118330.0,118320.0,0.19657907]
[1753041424853,1.87275599,118330.0,118320.0,0.38508316]
[1753041425054,1.87275599,118330.0,118320.0,0.19657907]
[1753041425453,1.87275599,118330.0,118320.0,0.38508316]
[1753041426056,1.87275599,118330.0,118320.0,0.02363007]
[1753041426353,0.5769676,118320.0,118310.0,0.98067649]
[1753041426653,1.43001169,118320.0,118310.0,0.98067649]
[1753041428551,1.43828373,118320.0,118310.0,0.98067649]
[1753041429152,1.43828373,118320.0,118310.0,0.98167649]
[1753041429355,1.43828373,118320.0,118310.0,0.7931724]
[1753041429555,1.24977964,118320.0,118310.0,0.98267649]
[1753041429854,1.43828373,118320.0,118310.0,0.98267649]
[1753041430255,1.43828373,118320.0,118310.0,0.002]
[1753041430256,1.83613582,118320.0,118310.0,0.002]
[1753041430450,1.83613582,118320.0,118310.0,0.2728924]
[1753041430756,1.83613582,118320.0,118310.0,0.2518924]
[1753041430950,1.64763173,118320.0,118310.0,0.4208648]
[1753041431657,1.64763173,118320.0,118310.0,0.42099398]
[1753041433156,1.64763173,118320.0,118310.0,0.74990158]
[1753041434359,1.64863173,118320.0,118310.0,0.74990158]
[1753041434560,1.65063173,118320.0,118310.0,0.74990158]
[1753041435760,1.83913582,118320.0,118310.0,0.74990158]
[1753041437663,1.46212764,118320.0,118310.0,0.74990158]
[1753041437856,1.65063173,118320.0,118310.0,0.74990158]
[1753041439063,1.46212764,118320.0,118310.0,0.74990158]
[1753041439561,1.65063173,118320.0,118310.0,0.74990158]
[1753041441566,1.46212764,118320.0,118310.0,0.74990158]
[1753041441752,1.65063173,118320.0,118310.0,0.74990158]
[1753041442463,1.41988504,118320.0,118310.0,0.93840567]
[1753041442764,1.60838913,118320.0,118310.0,0.93840567]
[1753041443662,1.60838913,118320.0,118310.0,0.74990158]
[1753041443865,1.60838913,118320.0,118310.0,0.93840567]
[1753041446969,1.60838913,118320.0,118310.0,0.74990158]
[1753041451167,1.60838913,118320.0,118310.0,0.93840567]
[1753041451368,1.60838913,118320.0,118310.0,0.74990158]
[1753041452263,1.79689322,118320.0,118310.0,0.74990158]
[1753041453370,1.79689322,118320.0,118310.0,0.93840567]
[1753041454666,1.79689322,118320.0,118310.0,0.74990158]
[1753041454969,1.79689322,118320.0,118310.0,0.93840567]
[1753041457372,1.41988504,118320.0,118310.0,0.74990158]
[1753041457670,1.41988504,118320.0,118310.0,0.93840567]
[1753041457863,1.79689322,118320.0,118310.0,0.93840567]
[1753041458863,1.79689322,118320.0,118310.0,0.74990158]
[1753041462372,1.43609322,118320.0,118310.0,0.74990158]
[1753041462577,2.15769322,118320.0,118310.0,0.74990158]
[1753041465981,2.15769322,118320.0,118310.0,0.78028549]
[1753041481201,1.78068504,118320.0,118310.0,0.78028549]
[1753041481403,2.15769322,118320.0,118310.0,0.78028549]
[1753041483103,2.15769322,118320.0,118310.0,0.96878958]
[1753041484805,2.15769322,118320.0,118310.0,0.38798958]
[1753041485004,2.15769322,118320.0,118310.0,0.78016549]
[1753041485205,2.15769322,118320.0,118310.0,0.96866958]
[1753041485807,2.15769322,118320.0,118310.0,0.38798958]
[1753041486107,2.15769322,118320.0,118310.0,0.78016549]
[1753041487209,1.78068504,118320.0,118310.0,0.78016549]
[1753041487413,2.15769322,118320.0,118310.0,0.78016549]
[1753041494119,2.15769322,118320.0,118310.0,0.74978158]
[1753041496013,2.15769322,118320.0,118310.0,0.78016549]
[1753041497524,2.15769322,118320.0,118310.0,0.77116549]
[1753041498425,2.15769322,118320.0,118310.0,0.77016549]
[1753041498725,2.15769322,118320.0,118310.0,0.61119309]
[1753041499022,2.15769322,118320.0,118310.0,0.78016549]
[1753041499224,2.15769322,118320.0,118310.0,0.77416549]
[1753041499523,2.15769322,118320.0,118310.0,0.75316549]
[1753041499824,2.15769322,118320.0,118310.0,0.75216549]
[1753041500125,2.15769322,118320.0,118310.0,0.67416549]
[1753041500524,2.15769322,118320.0,118310.0,0.67116549]
[1753041500824,2.15769322,118320.0,118310.0,0.67016549]
[1753041501225,2.15769322,118320.0,118310.0,0.66516549]
[1753041501432,2.15769322,118320.0,118310.0,0.66216549]
[1753041501725,2.15769322,118320.0,118310.0,0.64216549]
[1753041502423,2.15769322,118320.0,118310.0,0.64116549]
[1753041503632,2.15769322,118320.0,118310.0,0.41416549]
[1753041504027,1.43609322,118320.0,118310.0,0.41416549]
[1753041504228,2.15769322,118320.0,118310.0,0.41416549]
[1753041504826,1.78068504,118320.0,118310.0,0.41416549]
[1753041505026,2.15769322,118320.0,118310.0,0.41416549]
[1753041505324,2.15769322,118320.0,118310.0,0.60266958]
[1753041505823,1.78068504,118320.0,118310.0,0.57228567]
[1753041506022,2.15769322,118320.0,118310.0,0.57228567]
[1753041506932,2.15769322,118320.0,118310.0,0.38378158]
[1753041507132,2.15769322,118320.0,118310.0,0.57228567]
[1753041507331,2.15769322,118320.0,118310.0,0.38378158]
[1753041507533,2.15769322,118320.0,118310.0,0.57228567]
[1753041511541,2.15769322,118320.0,118310.0,0.38378158]
[1753041511840,2.15769322,118320.0,118310.0,0.57228567]
[1753041515943,2.15769322,118320.0,118310.0,0.60266958]
[1753041517242,2.15769322,118320.0,118310.0,0.92266958]
[1753041517448,2.15769322,118320.0,118310.0,0.60266958]
[1753041524247,1.96918913,118320.0,118310.0,0.60266958]
[1753041525053,1.78068504,118320.0,118310.0,0.60266958]
[1753041525249,1.96918913,118320.0,118310.0,0.60266958]
[1753041526546,2.15769322,118320.0,118310.0,0.60266958]
[1753041526852,2.15769322,118320.0,118310.0,0.41416549]
[1753041527051,2.15769322,118320.0,118310.0,0.60266958]
[1753041529452,2.15769322,118320.0,118310.0,0.95266958]
[1753041529653,2.15769322,118320.0,118310.0,0.60266958]
[1753041530056,1.96918913,118320.0,118310.0,0.19935631]
[1753041530256,2.15769322,118320.0,118310.0,0.19935631]
[1753041530456,1.78068504,118320.0,118310.0,0.19935631]
[1753041530649,2.15769322,118320.0,118310.0,0.19935631]
[1753041531050,2.15769322,118320.0,118310.0,0.3878604]
[1753041531555,2.15769322,118320.0,118310.0,0.19935631]
[1753041531755,2.15769322,118320.0,118310.0,0.3878604]
[1753041533157,2.15769322,118320.0,118310.0,0.19935631]
[1753041533358,2.15769322,118320.0,118310.0,0.3878604]
[1753041536356,2.15769322,118320.0,118310.0,0.19935631]
[1753041539462,1.78068504,118320.0,118310.0,0.19935631]
[1753041539660,2.15769322,118320.0,118310.0,0.3878604]
[1753041540560,1.78068504,118320.0,118310.0,0.3878604]
[1753041540755,2.15769322,118320.0,118310.0,0.3878604]
[1753041540956,2.16769322,118320.0,118310.0,0.19935631]
[1753041541152,1.79068504,118320.0,118310.0,0.19935631]
[1753041541365,2.16769322,118320.0,118310.0,0.19935631]
[1753041542765,1.71746209,118320.0,118310.0,0.51935631]
[1753041542960,1.6979162,118320.0,118310.0,0.89636449]
[1753041544160,1.528958,118320.0,118310.0,0.89636449]
[1753041544767,1.528958,118320.0,118310.0,0.7078604]
[1753041545066,0.807358,118320.0,118310.0,0.7078604]
[1753041545260,1.168158,118320.0,118310.0,0.7078604]
[1753041545564,1.168158,118320.0,118310.0,0.89636449]
[1753041545968,1.168158,118320.0,118310.0,0.86598058]
[1753041546370,1.3371162,118320.0,118310.0,0.4889724]
[1753041546666,1.3371162,118320.0,118310.0,0.67747649]
[1753041546867,1.3371162,118320.0,118310.0,0.51935631]
[1753041547262,1.3371162,118320.0,118310.0,0.7078604]
[1753041547457,1.3371162,118320.0,118310.0,0.51935631]
[1753041547668,1.3371162,118320.0,118310.0,0.7078604]
[1753041547867,1.3371162,118320.0,118310.0,0.7478604]
[1753041547868,0.9763162,118320.0,118310.0,0.7478604]
[1753041548571,1.3371162,118320.0,118310.0,0.3878604]
[1753041548769,1.3371162,118320.0,118310.0,0.6978604]
[1753041548971,1.3371162,118320.0,118310.0,0.3878604]
[1753041549171,1.168158,118320.0,118310.0,0.7278604]
[1753041549367,1.3371163,118320.0,118310.0,0.7278604]
[1753041550773,1.3371163,118320.0,118310.0,0.53935631]
[1753041550974,1.3371163,118320.0,118310.0,0.7278604]
[1753041554075,1.3371163,118320.0,118310.0,0.19935631]
[1753041554375,0.4767425,118310.0,118300.0,0.3090449]
[1753041554574,1.17086659,118310.0,118300.0,0.2112245]
[1753041554773,1.23769259,118310.0,118300.0,0.2112248]
[1753041554969,1.25690368,118310.0,118300.0,0.2112248]
[1753041555170,1.63134168,118310.0,118300.0,0.2112248]
[1753041555469,1.63134168,118310.0,118300.0,0.39972889]
[1753041555676,1.44283759,118310.0,118300.0,0.39972889]
[1753041555877,1.63134168,118310.0,118300.0,0.99460889]
[1753041556171,1.63134168,118310.0,118300.0,0.8061048]
[1753041556372,1.63134168,118310.0,118300.0,0.99460889]
[1753041556572,1.44283759,118310.0,118300.0,0.8061048]
[1753041556770,1.63134168,118310.0,118300.0,0.99460889]
[1753041558779,1.27054168,118310.0,118300.0,0.99460889]
[1753041558970,1.63134168,118310.0,118300.0,0.99460889]
[1753041560677,1.61213059,118310.0,118300.0,0.99460889]
[1753041562076,1.25133059,118310.0,118300.0,0.99460889]
[1753041562277,1.61213059,118310.0,118300.0,0.99460889]
[1753041563674,1.25133059,118310.0,118300.0,0.99460889]
[1753041563880,1.61213059,118310.0,118300.0,0.99460889]
[1753041565773,1.61213059,118310.0,118300.0,0.95236269]
[1753041567382,1.61213059,118310.0,118300.0,1.14086678]
[1753041568284,1.61213059,118310.0,118300.0,0.95236269]
[1753041569278,1.62945374,118310.0,118300.0,0.95236269]
[1753041570275,1.62945374,118310.0,118300.0,0.7638586]
[1753041570480,1.62945374,118310.0,118300.0,0.95236269]
[1753041571488,1.44094965,118310.0,118300.0,0.95236269]
[1753041571789,1.62945374,118310.0,118300.0,0.95236269]
[1753041573485,1.99025374,118310.0,118300.0,0.95236269]
[1753041573686,1.99025374,118310.0,118300.0,0.7638586]
[1753041573885,1.99025374,118310.0,118300.0,0.95236269]
[1753041576388,1.99025374,118310.0,118300.0,1.14086678]
[1753041577385,1.67501365,118310.0,118300.0,1.46086678]
[1753041577587,1.67501365,118310.0,118300.0,1.47086678]
[1753041579594,1.67501365,118310.0,118300.0,1.14086678]
[1753041579796,1.67501365,118310.0,118300.0,1.46086678]
[1753041580094,1.67501365,118310.0,118300.0,1.50086678]
[1753041581194,1.67501365,118310.0,118300.0,1.14086678]
[1753041582697,1.67501365,118310.0,118300.0,1.49086678]
[1753041585194,0.66634115,118310.0,118300.0,1.67937087]
[1753041585400,0.64176115,118310.0,118300.0,1.67937087]
[1753041585600,0.48176115,118310.0,118300.0,1.67937087]
[1753041586299,0.464438,118310.0,118300.0,1.67937087]
[1753041586800,0.464438,118310.0,118300.0,1.97097087]
[1753041587698,1.34530743,118310.0,118300.0,0.4605786]
[1753041587894,1.53381152,118310.0,118300.0,0.4605786]
[1753041588089,1.34530743,118310.0,118300.0,0.4605786]
[1753041588297,1.53381152,118310.0,118300.0,0.4605786]
[1753041588591,1.34530743,118310.0,118300.0,0.64908269]
[1753041588897,1.53381152,118310.0,118300.0,0.64908269]
[1753041589203,1.53381152,118310.0,118300.0,0.4605786]
[1753041589397,1.53381152,118310.0,118300.0,0.64908269]
[1753041590202,1.53381152,118310.0,118300.0,1.26384269]
[1753041591209,1.34530743,118310.0,118300.0,0.2916]
[1753041591508,1.59750155,118310.0,118300.0,0.90584]
[1753041592801,1.59750155,118310.0,118300.0,0.61424]
[1753041593907,0.4733254,118280.0,118270.0,1.59017462]
[1753041594106,1.1341254,118280.0,118270.0,2.02222319]
[1753041594410,1.1341254,118280.0,118270.0,2.27441731]
[1753041594609,1.1341254,118280.0,118270.0,0.85326319]
[1753041594904,1.1341254,118280.0,118270.0,0.48205731]
[1753041595104,1.1341254,118280.0,118270.0,1.03605462]
[1753041595304,1.3434734,118280.0,118270.0,0.7858605]
[1753041596299,1.3434734,118280.0,118270.0,1.03805462]
[1753041596502,1.3434734,118280.0,118270.0,0.7858605]
[1753041596705,1.3434734,118280.0,118270.0,0.7856605]
[1753041597012,1.59566752,118280.0,118270.0,0.7874297]
[1753041597409,1.59566752,118280.0,118270.0,0.1720297]
[1753041597613,1.67908603,118280.0,118270.0,0.6188]
[1753041597806,1.67908603,118280.0,118240.0,0.33024878]
[1753041597807,0.4876482,118250.0,118240.0,0.21339483]
[1753041598004,1.4792482,118250.0,118240.0,0.84760185]
[1753041598209,1.4792482,118250.0,118240.0,1.09977335]
[1753041598709,1.4792482,118250.0,118240.0,0.84757923]
[1753041599109,1.4792482,118250.0,118240.0,1.40200165]
[1753041599315,1.31019,118250.0,118240.0,1.04200165]
[1753041599515,0.94939,118250.0,118240.0,1.42200165]
[1753041599710,0.94939,118250.0,118240.0,1.42400165]
[1753041600018,0.94939,118250.0,118240.0,1.46955793]
[1753041600210,1.158738,118250.0,118240.0,1.46955793]
[1753041600612,1.158738,118250.0,118240.0,1.42400165]
[1753041601918,1.158738,118250.0,118240.0,1.17180753]
[1753041602114,1.158738,118250.0,118240.0,1.42400165]
[1753041602511,1.158738,118250.0,118240.0,1.17180753]
[1753041602811,1.158738,118250.0,118240.0,1.42400165]
[1753041603118,1.158738,118250.0,118240.0,1.04400165]
[1753041603314,1.158738,118250.0,118240.0,1.38400165]
[1753041603513,0.797938,118250.0,118240.0,1.74480165]
[1753041603718,0.797938,118250.0,118240.0,1.38400165]
[1753041604123,0.797938,118250.0,118240.0,1.74480165]
[1753041604811,0.483748,118250.0,118240.0,1.99699577]
[1753041605014,0.460878,118250.0,118240.0,1.99699577]
[1753041605414,0.596438,118250.0,118240.0,1.74480165]
[1753041605615,0.757938,118250.0,118240.0,1.74480165]
[1753041605815,0.757938,118250.0,118240.0,1.79035793]
[1753041607522,0.757938,118250.0,118240.0,1.42955793]
[1753041608223,0.757938,118250.0,118240.0,1.38400165]
[1753041608820,0.757938,118250.0,118240.0,1.13180753]
[1753041609020,0.757938,118250.0,118240.0,1.38400165]
[1753041609625,0.757938,118250.0,118240.0,1.74480165]
[1753041609923,0.657938,118250.0,118240.0,1.79035793]
[1753041614627,0.8269961,118250.0,118240.0,1.79035793]
[1753041615627,0.657938,118250.0,118240.0,1.79035793]
[1753041616528,0.657938,118250.0,118240.0,2.08195793]
[1753041618330,0.657938,118250.0,118240.0,1.72115793]
[1753041619427,0.4543162,118250.0,118240.0,2.33415205]
[1753041619633,0.2005462,118250.0,118240.0,2.33415205]
[1753041621237,0.3243162,118250.0,118240.0,2.28859577]
[1753041622926,0.3720762,118250.0,118240.0,2.28859577]
[1753041624234,0.3720762,118250.0,118240.0,2.34936747]
[1753041625731,0.2005462,118250.0,118240.0,2.34936747]
[1753041627137,0.3193662,118250.0,118240.0,2.34936747]
[1753041627439,0.3662962,118250.0,118240.0,2.34936747]
[1753041630639,0.3662962,118250.0,118240.0,2.28859577]
[1753041630829,0.3662962,118250.0,118240.0,1.73375397]
[1753041631033,0.3662962,118250.0,118240.0,2.34295397]
[1753041631639,0.2005462,118250.0,118240.0,2.34295397]
[1753041631940,0.2005462,118250.0,118240.0,2.3581064]
[1753041632148,0.2005462,118250.0,118240.0,2.28211577]
[1753041632833,0.2005462,118250.0,118240.0,2.3581064]
[1753041633229,0.3193662,118250.0,118240.0,2.3581064]
[1753041634544,0.3193662,118250.0,118240.0,3.5274664]
[1753041635741,0.3662962,118250.0,118240.0,3.5274664]
[1753041636843,0.3662962,118250.0,118240.0,3.02307816]
[1753041637046,0.3908262,118250.0,118240.0,3.45147577]
[1753041637344,0.4238362,118250.0,118240.0,3.45147577]
[1753041637545,0.5058462,118250.0,118240.0,3.45147577]
[1753041640449,0.5058462,118250.0,118240.0,2.84227577]
[1753041640645,0.5058462,118250.0,118240.0,3.44963577]
[1753041641045,0.5058462,118250.0,118240.0,3.51048058]
[1753041641256,0.7672562,118250.0,118240.0,2.55728646]
[1753041641557,1.1280562,118250.0,118240.0,2.55728646]
[1753041641745,1.2971145,118250.0,118240.0,2.55728646]
[1753041641945,1.2971145,118250.0,118240.0,1.95012646]
[1753041642159,1.2971145,118250.0,118240.0,2.30541234]
[1753041642447,1.2971145,118250.0,118240.0,2.55760646]
[1753041642848,1.2971145,118250.0,118240.0,2.55744646]
[1753041643049,1.2971145,118250.0,118240.0,1.95013556]
[1753041643450,1.2971145,118250.0,118240.0,1.63709663]
[1753041643655,1.2971145,118250.0,118240.0,2.24413663]
[1753041643856,1.2971145,118250.0,118240.0,2.07506403]
[1753041644158,1.2971145,118250.0,118240.0,2.12070077]
[1753041644457,1.2981145,118250.0,118240.0,2.11754077]
[1753041644655,1.2981145,118250.0,118240.0,2.36973489]
[1753041644959,1.2981145,118250.0,118240.0,2.11754077]
[1753041645956,1.3067597,118250.0,118240.0,1.82594077]
[1753041647258,1.3067597,118250.0,118240.0,1.99501357]
[1753041647765,1.3067597,118250.0,118240.0,1.38813357]
[1753041647961,1.3067597,118250.0,118240.0,1.99441357]
[1753041649266,1.2981145,118250.0,118240.0,1.99441357]
[1753041650866,1.2981145,118250.0,118240.0,1.94877683]
[1753041651265,1.2981145,118250.0,118240.0,1.94677683]
[1753041651565,1.2981145,118250.0,118240.0,1.99241357]
[1753041651967,1.2981145,118250.0,118240.0,1.94653683]
[1753041652467,1.30666031,118250.0,118240.0,1.94653683]
[1753041654062,1.55885443,118250.0,118240.0,0.00206403]
[1753041654366,2.33371844,118250.0,118240.0,0.00206403]
[1753041655066,2.35041257,118250.0,118240.0,0.00206403]
[1753041655267,2.33371844,118250.0,118240.0,0.00206403]
[1753041655870,2.35040939,118250.0,118240.0,0.00206403]
[1753041656267,0.2918627,118240.0,118230.0,0.8171544]
[1753041656466,1.34647682,118240.0,118230.0,0.8171544]
[1753041657373,1.34647682,118240.0,118230.0,0.2113544]
[1753041657568,1.34647682,118240.0,118230.0,0.8163544]
[1753041658166,0.483497,118230.0,118220.0,0.2536382]
[1753041658366,1.084297,118230.0,118220.0,0.8583982]
[1753041659170,1.084297,118230.0,118220.0,0.86176014]
[1753041659371,1.084297,118230.0,118220.0,0.7738486]
[1753041659572,1.084297,118230.0,118220.0,0.81938177]
[1753041660175,1.2848432,118230.0,118220.0,0.65029317]
[1753041660370,1.2848432,118230.0,118220.0,0.63511523]
[1753041661172,1.2848432,118230.0,118220.0,0.80421653]
[1753041661577,1.2848432,118230.0,118220.0,1.05641065]
[1753041662179,1.2848432,118230.0,118220.0,1.02605542]
[1753041662481,1.2848432,118230.0,118220.0,0.7766213]
[1753041663573,1.2848432,118230.0,118220.0,0.60752]
[1753041663774,1.2848432,118230.0,118220.0,0.85971412]
[1753041664176,1.2848432,118230.0,118220.0,0.60752]
[1753041664367,1.2848432,118230.0,118220.0,0.7766213]
[1753041664976,1.2848432,118230.0,118220.0,0.85971412]
[1753041665875,1.2848432,118230.0,118220.0,0.89006935]
[1753041666778,1.2848432,118230.0,118220.0,0.7766212]
[1753041666979,1.2848432,118230.0,118220.0,0.80697643]
[1753041667278,1.1157562,118230.0,118220.0,1.06090055]
[1753041667580,1.2848431,118230.0,118220.0,1.06090055]
[1753041667771,1.2848431,118230.0,118220.0,1.05917055]
[1753041669182,1.2848431,118230.0,118220.0,0.80697643]
[1753041669383,1.2848431,118230.0,118220.0,1.05917055]
[1753041670585,1.2848431,118230.0,118220.0,1.39917055]
[1753041670786,1.2848431,118230.0,118220.0,1.05917055]
[1753041672477,1.2848431,118230.0,118220.0,1.40917055]
[1753041673190,1.2848431,118230.0,118220.0,1.05917055]
[1753041673795,1.1157562,118230.0,118220.0,1.05917055]
[1753041674095,1.2848431,118230.0,118220.0,1.05917055]
[1753041674392,1.2848431,118230.0,118220.0,0.8525096]
[1753041674796,1.2848431,118230.0,118220.0,1.10470372]
[1753041675695,1.2848431,118230.0,118220.0,1.47470372]
[1753041675991,1.2848431,118230.0,118220.0,1.05917055]
[1753041677096,1.2848431,118230.0,118220.0,0.80697643]
[1753041677295,1.2848431,118230.0,118220.0,1.05917055]
[1753041678199,1.2848431,118230.0,118220.0,1.10470372]
[1753041678496,1.2848431,118230.0,118220.0,0.8525096]
[1753041678696,1.2848431,118230.0,118220.0,1.10470372]
[1753041679997,1.2848431,118230.0,118220.0,0.8525096]
[1753041680194,1.2848431,118230.0,118220.0,1.10470372]
[1753041682098,1.2848431,118230.0,118220.0,0.8525096]
[1753041682298,1.2848431,118230.0,118220.0,0.6806484]
[1753041682598,1.53703722,118230.0,118220.0,0.63511523]
[1753041682989,1.53803722,118230.0,118220.0,0.03035523]
[1753041683193,1.53803722,118230.0,118220.0,0.63743523]
[1753041683497,1.2858431,118230.0,118220.0,0.60708]
[1753041683697,1.53803722,118230.0,118220.0,0.60708]
[1753041683895,0.1691012,118220.0,118210.0,0.6211605]
[1753041684193,1.38650532,118220.0,118210.0,0.04553317]
[1753041684398,1.1343112,118220.0,118210.0,0.8535985]
[1753041684597,1.38650532,118220.0,118210.0,0.8535985]
[1753041684793,1.38650532,118220.0,118210.0,0.2450785]
[1753041684986,1.38650532,118220.0,118210.0,0.8540785]
[1753041685188,1.58705152,118220.0,118210.0,0.8540785]
[1753041685393,1.58705152,118220.0,118210.0,0.19954533]
[1753041685899,0.2955654,118210.0,118200.0,0.3324032]
[1753041686199,1.0996854,118210.0,118200.0,0.325963]
[1753041686498,1.0996854,118210.0,118200.0,0.8539727]
[1753041687895,1.0996854,118210.0,118200.0,0.684843]
[1753041688090,1.35387952,118210.0,118200.0,0.2450927]
[1753041688296,1.35387952,118210.0,118200.0,0.684603]
[1753041688501,1.35387952,118210.0,118200.0,0.8537327]
[1753041688698,1.35387952,118210.0,118200.0,0.684603]
[1753041689001,1.1016854,118210.0,118200.0,0.8537327]
[1753041689294,1.35387952,118210.0,118200.0,0.80819953]
[1753041689495,1.96275952,118210.0,118200.0,0.03042983]
[1753041690195,0.4888997,118200.0,118190.0,0.94073213]
[1753041690398,1.0996997,118200.0,118190.0,0.94073213]
[1753041690595,1.0996997,118200.0,118190.0,0.89844663]
[1753041690791,1.0996997,118200.0,118190.0,0.85291346]
[1753041691300,1.1006997,118200.0,118190.0,0.85291346]
[1753041692293,1.1006997,118200.0,118190.0,1.17567346]
[1753041692501,1.1006997,118200.0,118190.0,1.42786758]
[1753041692701,1.1006997,118200.0,118190.0,1.10786758]
[1753041694306,1.1006997,118200.0,118190.0,1.06558318]
[1753041695003,1.1006997,118200.0,118190.0,0.81338906]
[1753041695303,1.3012459,118200.0,118190.0,1.16295923]
[1753041696597,1.3012459,118200.0,118190.0,0.17396803]
[1753041696801,1.3012459,118200.0,118190.0,0.86597815]
[1753041697302,1.3012459,118200.0,118190.0,0.61102403]
[1753041698404,1.3012459,118200.0,118190.0,0.78016803]
[1753041698801,1.3012459,118200.0,118190.0,0.61062403]
[1753041699806,1.3012459,118200.0,118190.0,0.77976803]
[1753041702203,1.3012459,118200.0,118190.0,0.78252803]
[1753041702602,1.3012459,118200.0,118190.0,1.03472215]
[1753041705416,1.30951712,118200.0,118190.0,1.03472215]
[1753041707510,1.30951712,118200.0,118190.0,0.78252803]
[1753041708717,0.94871712,118200.0,118190.0,0.78252803]
[1753041708920,1.30951712,118200.0,118190.0,0.78252803]
[1753041709417,1.30951712,118200.0,118190.0,0.77976803]
[1753041712220,1.30951712,118200.0,118190.0,0.81014793]
[1753041715123,1.49900341,118200.0,118190.0,0.99963422]
[1753041715422,1.49900341,118200.0,118190.0,0.81014793]
[1753041715622,1.49900341,118200.0,118190.0,0.99963422]
[1753041716117,1.49900341,118200.0,118190.0,1.00239422]
[1753041717021,1.30951712,118200.0,118190.0,1.00239422]
[1753041717222,1.49900341,118200.0,118190.0,0.81290793]
[1753041717419,1.49900341,118200.0,118190.0,1.00239422]
[1753041718924,1.30951712,118200.0,118190.0,1.00239422]
[1753041719222,1.49900341,118200.0,118190.0,1.04796408]
[1753041719523,1.49900341,118200.0,118190.0,0.85847779]
[1753041719823,1.49900341,118200.0,118190.0,1.04796408]
[1753041721022,1.6884897,118200.0,118190.0,0.87050008]
[1753041721224,1.6884897,118200.0,118190.0,0.68101379]
[1753041721616,1.6884897,118200.0,118190.0,0.07801379]
[1753041722024,1.6884897,118200.0,118180.0,0.04556986]
[1753041722025,0.4703939,118190.0,118180.0,0.04556986]
[1753041722228,0.4704225,118170.0,118160.0,0.5040194]
[1753041722426,1.30070879,118170.0,118160.0,1.1267394]
[1753041723125,1.31934494,118170.0,118160.0,0.91733311]
[1753041723327,1.31934494,118170.0,118160.0,0.87503681]
[1753041723918,1.12985865,118170.0,118160.0,0.83274251]
[1753041724122,1.31934494,118170.0,118160.0,0.83274251]
[1753041724321,1.32134494,118170.0,118160.0,0.83274251]
[1753041724530,1.13185865,118170.0,118160.0,0.83274661]
[1753041724825,1.32134494,118170.0,118160.0,0.83274661]
[1753041725127,1.38465695,118170.0,118160.0,0.83274661]
[1753041725317,1.33240485,118170.0,118160.0,0.83274661]
[1753041725926,1.33240485,118170.0,118160.0,0.7719868]
[1753041727226,1.33240485,118170.0,118160.0,1.0247851]
[1753041727424,1.33240485,118170.0,118160.0,0.7719868]
[1753041727622,1.33240485,118170.0,118160.0,0.7925968]
[1753041727827,1.33240485,118170.0,118160.0,0.7953568]
[1753041729032,1.33240485,118170.0,118160.0,1.0481551]
[1753041729433,1.33240485,118170.0,118160.0,0.7953568]
[1753041730836,1.33240485,118170.0,118160.0,1.0481551]
[1753041731531,1.33240485,118170.0,118160.0,1.3581551]
[1753041731737,1.33240485,118170.0,118160.0,1.0481551]
[1753041732230,1.33240485,118170.0,118160.0,0.7953568]
[1753041732432,1.33240485,118170.0,118160.0,1.0481551]
[1753041732627,0.4704511,118150.0,118140.0,0.50516833]
[1753041732929,0.7104511,118150.0,118140.0,1.45515983]
[1753041735134,0.7104511,118150.0,118140.0,1.45539983]
[1753041735328,0.9109973,118150.0,118140.0,1.45539983]
[1753041737132,0.93009602,118150.0,118140.0,1.45539983]
[1753041737332,0.93009602,118150.0,118140.0,0.97260153]
[1753041737534,0.93009602,118150.0,118140.0,1.48539983]
[1753041737927,0.93009602,118150.0,118140.0,1.05008773]
[1753041738128,0.93009602,118150.0,118140.0,0.79728943]
[1753041738328,0.93009602,118150.0,118140.0,1.05008773]
[1753041738628,0.93009602,118150.0,118140.0,0.79728943]
[1753041738825,0.93009602,118150.0,118140.0,1.05008773]
[1753041739236,0.93009602,118150.0,118140.0,0.79728943]
[1753041739431,0.93009602,118150.0,118140.0,1.05008773]
[1753041740537,0.93009602,118150.0,118140.0,0.79728943]
[1753041740835,0.93009602,118150.0,118140.0,1.05008773]
[1753041741134,0.93009602,118150.0,118140.0,1.42008773]
[1753041741430,0.93009602,118150.0,118140.0,1.05008773]
[1753041741630,0.93009602,118150.0,118140.0,1.39008773]
[1753041741840,0.93009602,118150.0,118140.0,1.05008773]
[1753041742132,0.93009602,118150.0,118140.0,1.20284376]
[1753041742330,0.93009602,118150.0,118140.0,1.09564206]
[1753041742828,0.93009602,118150.0,118140.0,1.05008773]
[1753041743238,0.93009602,118150.0,118140.0,0.79728943]
[1753041743540,0.93009602,118150.0,118140.0,1.05156014]
[1753041744133,0.93009602,118150.0,118140.0,0.79876184]
[1753041744333,0.93009602,118150.0,118140.0,1.37156014]
[1753041744537,0.93009602,118150.0,118140.0,1.05156014]
[1753041744831,1.54369432,118150.0,118140.0,0.62954644]
[1753041745036,1.54369432,118150.0,118140.0,0.60617644]
[1753041745837,1.29089602,118150.0,118140.0,0.60617644]
[1753041746039,1.29189602,118150.0,118140.0,0.60617644]
[1753041746538,1.30019571,118150.0,118140.0,0.60617644]
[1753041747231,1.55299401,118150.0,118140.0,0.00353644]
[1753041747432,0.4835254,118140.0,118130.0,0.04555433]
[1753041747626,1.3871237,118140.0,118130.0,0.64799433]
[1753041747834,1.1343254,118140.0,118130.0,0.60244]
[1753041748138,1.13417906,118140.0,118130.0,0.60244]
[1753041748440,1.13417906,118140.0,118130.0,0.7716697]
[1753041748635,1.13517906,118140.0,118130.0,0.7716697]
[1753041748836,1.13517906,118140.0,118130.0,0.60244]
[1753041749336,1.38797736,118140.0,118130.0,0.60244]
[1753041749639,0.31431,118120.0,118110.0,0.33567833]
[1753041749942,0.60431,118120.0,118110.0,1.57111663]
[1753041750436,0.60431,118120.0,118110.0,1.57284663]
[1753041750740,0.62330632,118120.0,118110.0,1.57284663]
[1753041750942,0.62330632,118120.0,118110.0,1.5813222]
[1753041751141,0.60531,118120.0,118110.0,1.93664663]
[1753041751444,0.60531,118120.0,118110.0,1.57584663]
[1753041751636,0.60531,118120.0,118110.0,1.93664663]
[1753041751842,0.27966,118120.0,118110.0,2.18944493]
[1753041752038,0.16966,118120.0,118110.0,1.68384833]
[1753041752241,0.3941762,118120.0,118110.0,1.68384833]
[1753041752432,0.5458562,118120.0,118110.0,1.57784663]
[1753041752637,0.8058562,118120.0,118110.0,1.93691663]